[Event "December 19 Late 2023"]
[Site "https://www.chess.com"]
[Date "2023.12.19"]
[Round "7"]
[White "Slavin, Alexey"]
[Black "Spichkin, Alexander"]
[Result "1-0"]
[Board "113"]
[TimeControl "180+1"]
[WhiteFideId "24104388"]
[BlackFideId "4144074"]
[WhiteElo "2264"]
[BlackElo "1955"]
[WhiteTeam "RUS"]
[BlackTeam "RUS"]
[WhiteClock "0:00:54"]
[BlackClock "0:02:11"]

1. e4 {[%clk 0:02:59]}  e5 {[%clk 0:02:59]} 2. Nf3 {[%clk 0:02:59]}  d5 {[%clk 0:03:00]} 3. Nc3 {[%clk 0:02:58]}  dxe4 {[%clk 0:03:00]} 4. Nxe4 {[%clk 0:02:58]}  f5 {[%clk 0:03:00]} 5. Ng3 {[%clk 0:02:57]}  e4 {[%clk 0:03:01]} 6. Qe2 {[%clk 0:02:44]}  Nc6 {[%clk 0:02:58]} 7. c3 {[%clk 0:02:44]}  Nf6 {[%clk 0:02:58]} 8. d3 {[%clk 0:02:43]}  Qe7 {[%clk 0:02:55]} 9. dxe4 {[%clk 0:02:43]}  fxe4 {[%clk 0:02:55]} 10. Ng5 {[%clk 0:02:43]}  Bf5 {[%clk 0:02:55]} 11. Nxf5 {[%clk 0:02:40]}  Qe5 {[%clk 0:02:56]} 12. Ng3 {[%clk 0:02:37]}  O-O-O {[%clk 0:02:56]} 13. N5xe4 {[%clk 0:02:31]}  Nxe4 {[%clk 0:02:56]} 14. Nxe4 {[%clk 0:02:21]}  Re8 {[%clk 0:02:55]} 15. f3 {[%clk 0:02:20]}  Bc5 {[%clk 0:02:53]} 16. Be3 {[%clk 0:02:20]}  Bb6 {[%clk 0:02:44]} 17. O-O-O {[%clk 0:02:17]}  Qa5 {[%clk 0:02:44]} 18. Bxb6 {[%clk 0:02:12]}  axb6 {[%clk 0:02:44]} 19. Kb1 {[%clk 0:02:12]}  Ne5 {[%clk 0:02:43]} 20. Qb5 {[%clk 0:02:04]}  Qa7 {[%clk 0:02:41]} 21. Bc4 {[%clk 0:02:00]}  c6 {[%clk 0:02:40]} 22. Qb3 {[%clk 0:01:59]}  b5 {[%clk 0:02:37]} 23. Be6+ {[%clk 0:01:48]}  Kb8 {[%clk 0:02:37]} 24. Rhe1 {[%clk 0:01:34]}  Qb6 {[%clk 0:02:33]} 25. Bd7 {[%clk 0:01:28]}  Re7 {[%clk 0:02:33]} 26. Bh3 {[%clk 0:01:21]}  Rhe8 {[%clk 0:02:29]} 27. Nd6 {[%clk 0:01:19]}  Rd8 {[%clk 0:02:29]} 28. f4 {[%clk 0:01:15]}  Qf2 {[%clk 0:02:21]} 29. fxe5 {[%clk 0:01:10]}  Rxd6 {[%clk 0:02:20]} 30. exd6 {[%clk 0:01:05]}  Rxe1 {[%clk 0:02:19]} 31. d7 {[%clk 0:00:55]}  Rxd1+ {[%clk 0:02:11]} 32. Qxd1 {[%clk 0:00:54]} 1-0

[Event "December 19 Late 2023"]
[Site "https://www.chess.com"]
[Date "2023.12.19"]
[Round "7"]
[White "Azar, Sebastien"]
[Black "Palmer, Reegan"]
[Result "1-0"]
[Board "116"]
[TimeControl "180+1"]
[WhiteFideId "2640198"]
[BlackFideId "14322145"]
[WhiteElo "2386"]
[BlackElo "1814"]
[WhiteTeam "CAN"]
[BlackTeam "RSA"]
[WhiteClock "0:00:17"]
[BlackClock "0:00:23"]

1. e4 {[%clk 0:03:00]}  e6 {[%clk 0:02:57]} 2. d4 {[%clk 0:03:00]}  d5 {[%clk 0:02:58]} 3. e5 {[%clk 0:03:00]}  c5 {[%clk 0:02:58]} 4. c3 {[%clk 0:03:00]}  Nc6 {[%clk 0:02:59]} 5. Nf3 {[%clk 0:02:59]}  Qb6 {[%clk 0:03:00]} 6. Bd3 {[%clk 0:02:59]}  Nh6 {[%clk 0:02:59]} 7. O-O {[%clk 0:02:54]}  cxd4 {[%clk 0:02:48]} 8. Re1 {[%clk 0:02:48]}  dxc3 {[%clk 0:02:43]} 9. Nxc3 {[%clk 0:02:45]}  Ng4 {[%clk 0:02:44]} 10. Qe2 {[%clk 0:02:40]}  Bc5 {[%clk 0:02:43]} 11. Rf1 {[%clk 0:02:26]}  Qc7 {[%clk 0:02:22]} 12. Bf4 {[%clk 0:02:16]}  f6 {[%clk 0:01:48]} 13. Nxd5 {[%clk 0:01:35]}  exd5 {[%clk 0:01:15]} 14. exf6+ {[%clk 0:01:31]}  Nge5 {[%clk 0:01:14]} 15. fxg7 {[%clk 0:01:15]}  Qxg7 {[%clk 0:01:13]} 16. Nxe5 {[%clk 0:01:13]}  O-O {[%clk 0:01:01]} 17. Bg3 {[%clk 0:00:53]}  Re8 {[%clk 0:00:52]} 18. Rfe1 {[%clk 0:00:52]}  Bd4 {[%clk 0:00:35]} 19. Qh5 {[%clk 0:00:23]}  Rxe5 {[%clk 0:00:25]} 20. Bxe5 {[%clk 0:00:20]}  Nxe5 {[%clk 0:00:13]} 21. Qe8+ {[%clk 0:00:19]}  Qf8 {[%clk 0:00:13]} 22. Rxe5 {[%clk 0:00:16]}  Bxe5 {[%clk 0:00:11]} 23. Qxe5 {[%clk 0:00:13]}  Qf7 {[%clk 0:00:06]} 24. Re1 {[%clk 0:00:12]}  Bd7 {[%clk 0:00:04]} 25. h3 {[%clk 0:00:11]}  Re8 {[%clk 0:00:05]} 26. Qg3+ {[%clk 0:00:11]}  Qg7 {[%clk 0:00:04]} 27. Rxe8+ {[%clk 0:00:10]}  Bxe8 {[%clk 0:00:04]} 28. Qb8 {[%clk 0:00:08]}  Qe7 {[%clk 0:00:03]} 29. Bb5 {[%clk 0:00:06]}  Kf8 {[%clk 0:00:01]} 30. Bxe8 {[%clk 0:00:06]}  Qxe8 {[%clk 0:00:02]} 31. Qxe8+ {[%clk 0:00:06]}  Kxe8 {[%clk 0:00:02]} 32. Kf1 {[%clk 0:00:07]}  Ke7 {[%clk 0:00:03]} 33. Ke2 {[%clk 0:00:07]}  Kd6 {[%clk 0:00:04]} 34. Kd3 {[%clk 0:00:08]}  Kc5 {[%clk 0:00:04]} 35. a3 {[%clk 0:00:07]}  Kd6 {[%clk 0:00:05]} 36. Kd4 {[%clk 0:00:08]}  Ke6 {[%clk 0:00:05]} 37. g4 {[%clk 0:00:07]}  h6 {[%clk 0:00:06]} 38. f4 {[%clk 0:00:07]}  b5 {[%clk 0:00:06]} 39. f5+ {[%clk 0:00:07]}  Kd6 {[%clk 0:00:07]} 40. h4 {[%clk 0:00:07]}  a5 {[%clk 0:00:07]} 41. g5 {[%clk 0:00:07]}  hxg5 {[%clk 0:00:07]} 42. hxg5 {[%clk 0:00:08]}  a4 {[%clk 0:00:08]} 43. g6 {[%clk 0:00:08]}  Ke7 {[%clk 0:00:08]} 44. Kxd5 {[%clk 0:00:08]}  Kf6 {[%clk 0:00:09]} 45. Kc5 {[%clk 0:00:08]}  Kxf5 {[%clk 0:00:10]} 46. g7 {[%clk 0:00:09]}  Kg6 {[%clk 0:00:11]} 47. g8=Q+ {[%clk 0:00:09]}  Kf6 {[%clk 0:00:12]} 48. Kxb5 {[%clk 0:00:10]}  Ke7 {[%clk 0:00:12]} 49. Kxa4 {[%clk 0:00:10]}  Kd6 {[%clk 0:00:13]} 50. Kb3 {[%clk 0:00:11]}  Kc7 {[%clk 0:00:14]} 51. a4 {[%clk 0:00:12]}  Kb6 {[%clk 0:00:15]} 52. Ka3 {[%clk 0:00:13]}  Ka5 {[%clk 0:00:16]} 53. b3 {[%clk 0:00:14]}  Kb6 {[%clk 0:00:16]} 54. Qe6+ {[%clk 0:00:14]}  Kc5 {[%clk 0:00:17]} 55. Qe5+ {[%clk 0:00:14]}  Kb6 {[%clk 0:00:18]} 56. b4 {[%clk 0:00:14]}  Ka6 {[%clk 0:00:19]} 57. a5 {[%clk 0:00:14]}  Ka7 {[%clk 0:00:20]} 58. Qc7+ {[%clk 0:00:14]}  Ka8 {[%clk 0:00:19]} 59. Qg7 {[%clk 0:00:14]}  Kb8 {[%clk 0:00:20]} 60. Kb3 {[%clk 0:00:15]}  Kc8 {[%clk 0:00:21]} 61. Kc4 {[%clk 0:00:16]}  Kd8 {[%clk 0:00:22]} 62. Kb5 {[%clk 0:00:17]}  Ke8 {[%clk 0:00:22]} 63. Kc6 {[%clk 0:00:17]}  Kd8 {[%clk 0:00:23]} 64. Qd7# {[%clk 0:00:17]} 1-0

[Event "December 19 Late 2023"]
[Site "https://www.chess.com"]
[Date "2023.12.19"]
[Round "7"]
[White "Kovacevic, Radmila"]
[Black "Laskakis, Konstantinos"]
[Result "1-0"]
[Board "117"]
[TimeControl "180+1"]
[WhiteFideId "933171"]
[BlackFideId "42134374"]
[WhiteElo "2052"]
[BlackElo "2379"]
[WhiteTeam "SRB"]
[BlackTeam "GRE"]
[WhiteClock "0:00:47"]
[BlackClock "0:00:14"]

1. e4 {[%clk 0:02:57]}  e5 {[%clk 0:03:00]} 2. Nc3 {[%clk 0:02:57]}  Nf6 {[%clk 0:02:58]} 3. d4 {[%clk 0:02:55]}  exd4 {[%clk 0:02:57]} 4. Qxd4 {[%clk 0:02:56]}  Nc6 {[%clk 0:02:57]} 5. Qe3 {[%clk 0:02:56]}  Bb4 {[%clk 0:02:52]} 6. Bd2 {[%clk 0:02:56]}  O-O {[%clk 0:02:51]} 7. O-O-O {[%clk 0:02:56]}  Re8 {[%clk 0:02:51]} 8. Qg3 {[%clk 0:02:55]}  Nxe4 {[%clk 0:02:37]} 9. Nxe4 {[%clk 0:02:54]}  Rxe4 {[%clk 0:02:37]} 10. c3 {[%clk 0:02:54]}  Bf8 {[%clk 0:02:07]} 11. Bd3 {[%clk 0:02:48]}  Re8 {[%clk 0:02:01]} 12. Bg5 {[%clk 0:02:43]}  Be7 {[%clk 0:01:51]} 13. f4 {[%clk 0:02:42]}  Bxg5 {[%clk 0:01:47]} 14. fxg5 {[%clk 0:02:41]}  Ne5 {[%clk 0:01:43]} 15. Bc2 {[%clk 0:02:38]}  d6 {[%clk 0:01:42]} 16. Nf3 {[%clk 0:02:36]}  Ng4 {[%clk 0:01:23]} 17. Rd4 {[%clk 0:02:08]}  Ne3 {[%clk 0:01:15]} 18. Bb1 {[%clk 0:01:29]}  Nf5 {[%clk 0:01:14]} 19. Qh3 {[%clk 0:01:16]}  Nxd4 {[%clk 0:00:52]} 20. Qxh7+ {[%clk 0:01:15]}  Kf8 {[%clk 0:00:52]} 21. cxd4 {[%clk 0:01:11]}  Re6 {[%clk 0:00:31]} 22. d5 {[%clk 0:00:59]}  Re3 {[%clk 0:00:25]} 23. Qh8+ {[%clk 0:00:57]}  Ke7 {[%clk 0:00:25]} 24. Qxg7 {[%clk 0:00:57]}  Bg4 {[%clk 0:00:21]} 25. Qf6+ {[%clk 0:00:54]}  Ke8 {[%clk 0:00:21]} 26. Qf4 {[%clk 0:00:51]}  Rxf3 {[%clk 0:00:17]} 27. gxf3 {[%clk 0:00:51]}  Bd7 {[%clk 0:00:17]} 28. Re1+ {[%clk 0:00:48]}  Kf8 {[%clk 0:00:17]} 29. g6 {[%clk 0:00:47]}  f6 {[%clk 0:00:14]} 30. Qh6+ {[%clk 0:00:46]}  Kg8 {[%clk 0:00:13]} 31. Qh7+ {[%clk 0:00:47]}  Kf8 {[%clk 0:00:14]} 32. Qf7# {[%clk 0:00:47]} 1-0

[Event "December 19 Late 2023"]
[Site "https://www.chess.com"]
[Date "2023.12.19"]
[Round "7"]
[White "Vanek, Tomas"]
[Black "Marin Pincheira, Carlos"]
[Result "1-0"]
[Board "118"]
[TimeControl "180+1"]
[WhiteFideId "313459"]
[BlackFideId "3407543"]
[WhiteElo "2052"]
[BlackElo "2080"]
[WhiteTeam "CZE"]
[BlackTeam "CHI"]
[WhiteClock "0:00:18"]
[BlackClock "0:00:33"]

1. e4 {[%clk 0:00:43]}  c6 {[%clk 0:02:47]} 2. d4 {[%clk 0:00:42]}  d5 {[%clk 0:02:47]} 3. Nc3 {[%clk 0:00:42]}  dxe4 {[%clk 0:02:37]} 4. Nxe4 {[%clk 0:00:42]}  Nd7 {[%clk 0:02:11]} 5. Bc4 {[%clk 0:00:39]}  Ngf6 {[%clk 0:02:10]} 6. Bxf7+ {[%clk 0:00:38]}  Kxf7 {[%clk 0:02:04]} 7. Ng5+ {[%clk 0:00:38]}  Ke8 {[%clk 0:02:03]} 8. Ne6 {[%clk 0:00:31]}  Qa5+ {[%clk 0:01:56]} 9. c3 {[%clk 0:00:31]}  Qd5 {[%clk 0:01:46]} 10. Nc7+ {[%clk 0:00:31]}  Kd8 {[%clk 0:01:42]} 11. Nxd5 {[%clk 0:00:32]}  Nxd5 {[%clk 0:01:39]} 12. Nf3 {[%clk 0:00:32]}  e6 {[%clk 0:01:36]} 13. O-O {[%clk 0:00:33]}  Be7 {[%clk 0:01:35]} 14. Be3 {[%clk 0:00:33]}  Rf8 {[%clk 0:01:34]} 15. Re1 {[%clk 0:00:34]}  N7f6 {[%clk 0:01:29]} 16. Qc2 {[%clk 0:00:34]}  a5 {[%clk 0:01:27]} 17. Rad1 {[%clk 0:00:35]}  Kc7 {[%clk 0:01:26]} 18. a3 {[%clk 0:00:35]}  a4 {[%clk 0:01:26]} 19. c4 {[%clk 0:00:35]}  Nxe3 {[%clk 0:01:26]} 20. Rxe3 {[%clk 0:00:34]}  Bd6 {[%clk 0:01:26]} 21. d5 {[%clk 0:00:32]}  exd5 {[%clk 0:01:25]} 22. cxd5 {[%clk 0:00:32]}  Bf4 {[%clk 0:01:16]} 23. dxc6 {[%clk 0:00:31]}  Bxe3 {[%clk 0:01:15]} 24. cxb7+ {[%clk 0:00:30]}  Kxb7 {[%clk 0:01:16]} 25. fxe3 {[%clk 0:00:29]}  Bd7 {[%clk 0:01:13]} 26. Qc5 {[%clk 0:00:27]}  Rfc8 {[%clk 0:01:12]} 27. Qb4+ {[%clk 0:00:27]}  Kc7 {[%clk 0:01:12]} 28. Ne5 {[%clk 0:00:27]}  Be6 {[%clk 0:01:10]} 29. Nc4 {[%clk 0:00:25]}  Bxc4 {[%clk 0:01:07]} 30. Qxc4+ {[%clk 0:00:25]}  Kb7 {[%clk 0:01:08]} 31. Qb4+ {[%clk 0:00:25]}  Kc7 {[%clk 0:01:08]} 32. Qe7+ {[%clk 0:00:24]}  Kb6 {[%clk 0:01:06]} 33. Qxg7 {[%clk 0:00:24]}  Rc6 {[%clk 0:01:06]} 34. Qe7 {[%clk 0:00:23]}  Re8 {[%clk 0:01:05]} 35. Qb4+ {[%clk 0:00:22]}  Kc7 {[%clk 0:01:06]} 36. Rf1 {[%clk 0:00:22]}  Nd5 {[%clk 0:01:04]} 37. Qd4 {[%clk 0:00:21]}  Rd6 {[%clk 0:00:58]} 38. Rf7+ {[%clk 0:00:21]}  Re7 {[%clk 0:00:54]} 39. Rxe7+ {[%clk 0:00:20]}  Nxe7 {[%clk 0:00:55]} 40. Qc5+ {[%clk 0:00:20]}  Kd7 {[%clk 0:00:55]} 41. Qb5+ {[%clk 0:00:20]}  Ke6 {[%clk 0:00:55]} 42. Qxa4 {[%clk 0:00:20]}  Nf5 {[%clk 0:00:55]} 43. Qe4+ {[%clk 0:00:19]}  Kf6 {[%clk 0:00:56]} 44. g4 {[%clk 0:00:19]}  Rd1+ {[%clk 0:00:55]} 45. Kf2 {[%clk 0:00:18]}  Rd2+ {[%clk 0:00:56]} 46. Kf3 {[%clk 0:00:16]}  Nh4+ {[%clk 0:00:55]} 47. Kg3 {[%clk 0:00:17]}  Ng6 {[%clk 0:00:56]} 48. Qf5+ {[%clk 0:00:16]}  Kg7 {[%clk 0:00:55]} 49. Qe4 {[%clk 0:00:14]}  Rd7 {[%clk 0:00:46]} 50. a4 {[%clk 0:00:14]}  Kf7 {[%clk 0:00:46]} 51. a5 {[%clk 0:00:14]}  Re7 {[%clk 0:00:46]} 52. Qf5+ {[%clk 0:00:14]}  Kg7 {[%clk 0:00:46]} 53. b4 {[%clk 0:00:14]}  Rxe3+ {[%clk 0:00:46]} 54. Kf2 {[%clk 0:00:14]}  Rb3 {[%clk 0:00:46]} 55. Qe4 {[%clk 0:00:12]}  Rb2+ {[%clk 0:00:46]} 56. Ke1 {[%clk 0:00:12]}  Rxh2 {[%clk 0:00:45]} 57. Qd4+ {[%clk 0:00:11]}  Kf7 {[%clk 0:00:44]} 58. Qd7+ {[%clk 0:00:12]}  Kg8 {[%clk 0:00:42]} 59. Qd8+ {[%clk 0:00:12]}  Nf8 {[%clk 0:00:42]} 60. Qd5+ {[%clk 0:00:12]}  Kg7 {[%clk 0:00:37]} 61. Qe5+ {[%clk 0:00:13]}  Kf7 {[%clk 0:00:37]} 62. Qxh2 {[%clk 0:00:14]}  Ke6 {[%clk 0:00:37]} 63. Qf2 {[%clk 0:00:15]}  Kd5 {[%clk 0:00:38]} 64. Qe2 {[%clk 0:00:15]}  Ne6 {[%clk 0:00:38]} 65. Qd2+ {[%clk 0:00:16]}  Kc4 {[%clk 0:00:38]} 66. g5 {[%clk 0:00:17]}  Nd4 {[%clk 0:00:38]} 67. Qxd4+ {[%clk 0:00:17]}  Kxd4 {[%clk 0:00:39]} 68. a6 {[%clk 0:00:17]}  Kd5 {[%clk 0:00:33]} 69. a7 {[%clk 0:00:18]} 1-0

[Event "December 19 Late 2023"]
[Site "https://www.chess.com"]
[Date "2023.12.19"]
[Round "7"]
[White "Smith, Garrett L"]
[Black "Michalski, Olaf"]
[Result "1-0"]
[Board "119"]
[TimeControl "180+1"]
[WhiteFideId "2024829"]
[BlackFideId "1106740"]
[WhiteElo "2368"]
[BlackElo "2105"]
[WhiteTeam "USA"]
[BlackTeam "POL"]
[WhiteClock "0:01:08"]
[BlackClock "0:00:00"]

1. e4 {[%clk 0:03:00]}  c5 {[%clk 0:02:58]} 2. Nf3 {[%clk 0:03:00]}  a6 {[%clk 0:02:59]} 3. a4 {[%clk 0:02:58]}  e6 {[%clk 0:02:54]} 4. d4 {[%clk 0:02:56]}  d5 {[%clk 0:02:53]} 5. exd5 {[%clk 0:02:52]}  exd5 {[%clk 0:02:49]} 6. Be2 {[%clk 0:02:46]}  Nf6 {[%clk 0:02:42]} 7. O-O {[%clk 0:02:46]}  c4 {[%clk 0:02:36]} 8. Ne5 {[%clk 0:02:39]}  Be7 {[%clk 0:02:28]} 9. f4 {[%clk 0:02:39]}  O-O {[%clk 0:02:28]} 10. c3 {[%clk 0:02:38]}  Ne4 {[%clk 0:02:21]} 11. Nd2 {[%clk 0:02:35]}  f5 {[%clk 0:02:21]} 12. Nxe4 {[%clk 0:02:25]}  fxe4 {[%clk 0:02:19]} 13. b3 {[%clk 0:02:21]}  cxb3 {[%clk 0:02:15]} 14. Qxb3 {[%clk 0:02:22]}  Nc6 {[%clk 0:02:12]} 15. Be3 {[%clk 0:02:16]}  Na5 {[%clk 0:02:01]} 16. Qa2 {[%clk 0:02:15]}  Be6 {[%clk 0:02:01]} 17. Rab1 {[%clk 0:02:13]}  Rc8 {[%clk 0:02:01]} 18. g4 {[%clk 0:02:03]}  Rxc3 {[%clk 0:01:49]} 19. Bd2 {[%clk 0:02:03]}  Ra3 {[%clk 0:01:34]} 20. Qb2 {[%clk 0:02:04]}  Rxa4 {[%clk 0:01:20]} 21. Bxa5 {[%clk 0:01:45]}  Qxa5 {[%clk 0:01:11]} 22. Qxb7 {[%clk 0:01:45]}  Bh4 {[%clk 0:01:02]} 23. f5 {[%clk 0:01:37]}  Bc8 {[%clk 0:00:54]} 24. Qc6 {[%clk 0:01:32]}  Rxd4 {[%clk 0:00:46]} 25. Rb8 {[%clk 0:01:24]}  Qd8 {[%clk 0:00:14]} 26. Bxa6 {[%clk 0:01:15]}  Qg5 {[%clk 0:00:08]} 27. Bxc8 {[%clk 0:01:08]}  Qe3+ {[%clk 0:00:00]} 28. Kh1 {[%clk 0:01:08]} 1-0

[Event "December 19 Late 2023"]
[Site "https://www.chess.com"]
[Date "2023.12.19"]
[Round "7"]
[White "Malek, Omid"]
[Black "Feliz Dotel, Dewar Bienvenido"]
[Result "1-0"]
[Board "120"]
[TimeControl "180+1"]
[WhiteFideId "2605384"]
[BlackFideId "6402801"]
[WhiteElo "2013"]
[BlackElo "2069"]
[WhiteTeam "CAN"]
[BlackTeam "DOM"]
[WhiteClock "0:02:20"]
[BlackClock "0:01:27"]

1. d4 {[%clk 0:03:00]}  Nf6 {[%clk 0:02:58]} 2. Bf4 {[%clk 0:02:57]}  e6 {[%clk 0:02:58]} 3. Nf3 {[%clk 0:02:57]}  b6 {[%clk 0:02:59]} 4. e3 {[%clk 0:02:57]}  Bb7 {[%clk 0:02:57]} 5. Nbd2 {[%clk 0:02:57]}  c5 {[%clk 0:02:57]} 6. c3 {[%clk 0:02:57]}  Nc6 {[%clk 0:02:57]} 7. Nc4 {[%clk 0:02:57]}  d5 {[%clk 0:02:54]} 8. Nce5 {[%clk 0:02:57]}  Nxe5 {[%clk 0:02:54]} 9. Nxe5 {[%clk 0:02:55]}  Bd6 {[%clk 0:02:51]} 10. Bb5+ {[%clk 0:02:54]}  Ke7 {[%clk 0:02:45]} 11. Qf3 {[%clk 0:02:39]}  a6 {[%clk 0:02:40]} 12. Ba4 {[%clk 0:02:34]}  b5 {[%clk 0:02:39]} 13. Bc2 {[%clk 0:02:34]}  cxd4 {[%clk 0:02:39]} 14. exd4 {[%clk 0:02:33]}  Bxe5 {[%clk 0:02:30]} 15. Bxe5 {[%clk 0:02:30]}  Rc8 {[%clk 0:02:12]} 16. a3 {[%clk 0:02:26]}  a5 {[%clk 0:02:10]} 17. Qg3 {[%clk 0:02:26]}  Ne8 {[%clk 0:01:54]} 18. O-O {[%clk 0:02:21]}  f6 {[%clk 0:01:53]} 19. Bf4 {[%clk 0:02:22]}  g5 {[%clk 0:01:46]} 20. Be3 {[%clk 0:02:22]}  Nd6 {[%clk 0:01:36]} 21. f4 {[%clk 0:02:21]}  Nf5 {[%clk 0:01:34]} 22. Bxf5 {[%clk 0:02:20]}  exf5 {[%clk 0:01:34]} 23. fxg5 {[%clk 0:02:21]}  fxg5 {[%clk 0:01:27]} 24. Bxg5+ {[%clk 0:02:20]} 1-0

[Event "December 19 Late 2023"]
[Site "https://www.chess.com"]
[Date "2023.12.19"]
[Round "7"]
[White "Ardila, Oscar Humberto"]
[Black "Egorov, Konstantin"]
[Result "1-0"]
[Board "124"]
[TimeControl "180+1"]
[WhiteFideId "4404742"]
[BlackFideId "24154369"]
[WhiteElo "1915"]
[BlackElo "1878"]
[WhiteTeam "COL"]
[BlackTeam "RUS"]
[WhiteClock "0:01:01"]
[BlackClock "0:01:13"]

1. d4 {[%clk 0:02:58]}  Nf6 {[%clk 0:02:59]} 2. c4 {[%clk 0:02:58]}  e6 {[%clk 0:03:00]} 3. Nc3 {[%clk 0:02:57]}  Bb4 {[%clk 0:03:00]} 4. Bd2 {[%clk 0:02:57]}  d5 {[%clk 0:02:58]} 5. Nf3 {[%clk 0:02:56]}  O-O {[%clk 0:02:57]} 6. e3 {[%clk 0:02:56]}  b6 {[%clk 0:02:55]} 7. Be2 {[%clk 0:02:55]}  Bb7 {[%clk 0:02:54]} 8. O-O {[%clk 0:02:55]}  c5 {[%clk 0:02:52]} 9. Nxd5 {[%clk 0:02:48]}  exd5 {[%clk 0:02:50]} 10. Bxb4 {[%clk 0:02:44]}  cxb4 {[%clk 0:02:50]} 11. Ne5 {[%clk 0:02:40]}  Nbd7 {[%clk 0:02:47]} 12. f4 {[%clk 0:02:37]}  Ne4 {[%clk 0:02:43]} 13. Bd3 {[%clk 0:02:26]}  f6 {[%clk 0:02:42]} 14. Nxd7 {[%clk 0:02:25]}  Qxd7 {[%clk 0:02:41]} 15. Bxe4 {[%clk 0:02:24]}  dxe4 {[%clk 0:02:42]} 16. Qh5 {[%clk 0:02:23]}  g6 {[%clk 0:02:36]} 17. Qh6 {[%clk 0:02:21]}  a5 {[%clk 0:02:33]} 18. h3 {[%clk 0:02:17]}  Rac8 {[%clk 0:02:30]} 19. Rac1 {[%clk 0:02:16]}  Qf7 {[%clk 0:02:09]} 20. b3 {[%clk 0:02:15]}  a4 {[%clk 0:02:06]} 21. g4 {[%clk 0:02:14]}  axb3 {[%clk 0:02:06]} 22. axb3 {[%clk 0:02:14]}  Ra8 {[%clk 0:02:06]} 23. Rf2 {[%clk 0:02:10]}  Ra5 {[%clk 0:02:02]} 24. d5 {[%clk 0:01:56]}  Rfa8 {[%clk 0:02:02]} 25. f5 {[%clk 0:01:51]}  Ra2 {[%clk 0:01:42]} 26. fxg6 {[%clk 0:01:33]}  hxg6 {[%clk 0:01:42]} 27. Rcf1 {[%clk 0:01:32]}  Rxf2 {[%clk 0:01:41]} 28. Rxf2 {[%clk 0:01:32]}  Ra1+ {[%clk 0:01:41]} 29. Kg2 {[%clk 0:01:33]}  Bc8 {[%clk 0:01:31]} 30. Qf4 {[%clk 0:01:29]}  Kg7 {[%clk 0:01:23]} 31. g5 {[%clk 0:01:23]}  Bf5 {[%clk 0:01:23]} 32. Qd6 {[%clk 0:01:18]}  fxg5 {[%clk 0:01:19]} 33. Qxb6 {[%clk 0:01:16]}  Bxh3+ {[%clk 0:01:17]} 34. Kg3 {[%clk 0:01:12]}  Rg1+ {[%clk 0:01:17]} 35. Kxh3 {[%clk 0:01:11]}  Qxf2 {[%clk 0:01:14]} 36. Qd4+ {[%clk 0:01:01]}  Kh6 {[%clk 0:01:13]} 37. Qh8# {[%clk 0:01:01]} 1-0

[Event "December 19 Late 2023"]
[Site "https://www.chess.com"]
[Date "2023.12.19"]
[Round "7"]
[White "Stead, Kerry"]
[Black "GirthyHuell"]
[Result "1-0"]
[Board "125"]
[TimeControl "180+1"]
[WhiteFideId "3202577"]
[WhiteElo "1997"]
[BlackElo "2343"]
[WhiteTeam "AUS"]
[WhiteClock "0:01:39"]
[BlackClock "0:01:24"]

1. d4 {[%clk 0:02:59]}  f5 {[%clk 0:02:59]} 2. g4 {[%clk 0:02:58]}  fxg4 {[%clk 0:02:55]} 3. e4 {[%clk 0:02:58]}  g6 {[%clk 0:02:53]} 4. c3 {[%clk 0:02:48]}  d6 {[%clk 0:02:49]} 5. h3 {[%clk 0:02:48]}  gxh3 {[%clk 0:02:48]} 6. Bxh3 {[%clk 0:02:49]}  Bg7 {[%clk 0:02:47]} 7. Bg5 {[%clk 0:02:40]}  h6 {[%clk 0:02:43]} 8. Be3 {[%clk 0:02:39]}  Nf6 {[%clk 0:02:24]} 9. Qd3 {[%clk 0:02:26]}  Nc6 {[%clk 0:02:16]} 10. Nd2 {[%clk 0:02:23]}  g5 {[%clk 0:02:14]} 11. Bxc8 {[%clk 0:02:19]}  Rxc8 {[%clk 0:02:13]} 12. Ngf3 {[%clk 0:02:19]}  e5 {[%clk 0:02:13]} 13. d5 {[%clk 0:02:19]}  Ne7 {[%clk 0:02:09]} 14. O-O-O {[%clk 0:02:15]}  c6 {[%clk 0:02:08]} 15. dxc6 {[%clk 0:02:14]}  Rxc6 {[%clk 0:02:07]} 16. Nc4 {[%clk 0:02:14]}  Nc8 {[%clk 0:02:00]} 17. Ncxe5 {[%clk 0:02:12]}  Ra6 {[%clk 0:01:49]} 18. Qb5+ {[%clk 0:01:50]}  Kf8 {[%clk 0:01:45]} 19. Ng6+ {[%clk 0:01:49]}  Kg8 {[%clk 0:01:44]} 20. Nxh8 {[%clk 0:01:49]}  Kxh8 {[%clk 0:01:45]} 21. Nxg5 {[%clk 0:01:44]}  Kg8 {[%clk 0:01:40]} 22. Ne6 {[%clk 0:01:43]}  Qe7 {[%clk 0:01:36]} 23. Nxg7 {[%clk 0:01:43]}  Qxg7 {[%clk 0:01:33]} 24. Rdg1 {[%clk 0:01:42]}  Ne7 {[%clk 0:01:27]} 25. Rxg7+ {[%clk 0:01:41]}  Kxg7 {[%clk 0:01:28]} 26. Qxb7 {[%clk 0:01:41]}  Rxa2 {[%clk 0:01:24]} 27. Qxe7+ {[%clk 0:01:40]}  Kg6 {[%clk 0:01:24]} 28. Rxh6# {[%clk 0:01:39]} 1-0